[Event "57th Biel Festival ATO 2024"]
[Site "Biel"]
[Date "2024.07.19"]
[Round "4.19"]
[White "Titov, Dmitrii"]
[Black "Galerne, Rene"]
[Result "1-0"]
[ECO "D05"]
[WhiteElo "1899"]
[BlackElo "1773"]
[Annotator "NA RC"]
[PlyCount "41"]
[EventDate "2024.07.03"]
[EventType "swiss"]
[EventCountry "SUI"]
[SourceTitle "playchess.com"]
[Source "ChessBase"]
[SourceQuality "1"]
[TimeControl "40/5400+30:1800+30"]

1. d4 {[%emt 0:00:57]} d5 {[%emt 0:00:19]} 2. Nf3 {[%emt 0:00:23]} Nf6 {[%emt 0:00:13]} 3. e3 {[%emt 0:00:08]} e6 {[%emt 0:00:24]} 4. Bd3 {[%emt 0:00:29]} Be7 {[%emt 0:00:38]} 5. Nbd2 {[%emt 0:00:40]} Nbd7 {[%emt 0:01:56]} 6. O-O {[%emt 0:00:35]} c5 {[%emt 0:02:21]} 7. b3 {[%emt 0:00:23]} b6 {[%emt 0:04:16]} 8. Bb2 {[%emt 0:01:57]} Qc7 {[%emt 0:03:27]} 9. Rc1 {[%emt 0:04:54]} a5 {[%emt 0:06:14]} 10. a4 {[%emt 0:01:25]} Ba6 {[%emt 0:03:05]} 11. Bxa6 {[%emt 0:04:16]} Rxa6 {[%emt 0:00:06]} 12. c4 {[%emt 0:02:14]} Qb7 {[%emt 0:04:17]} 13. cxd5 {[%emt 0:01:26]} exd5 {[%emt 0:01:56]} 14. Ne5 {[%emt 0:05:50]} Nxe5 {[%emt 0:04:44]} 15. dxe5 {[%emt 0:00:03]} Ne4 {[%emt 0:00:32]} 16. Nxe4 {[%emt 0:02:55]} dxe4 {[%emt 0:03:57]} 17. Qg4 {[%emt 0:08:31]} O-O {[%emt 0:15:41]} 18. e6 {[%emt 0:01:10]} g6 {[%emt 0:01:29]} 19. Rfd1 {[%emt 0:11:16]} f5 {[%emt 0:09:23]} 20. Qh3 {[%emt 0:00:31]} Bf6 {[%emt 0:00:39]} 21. Rd7 {[%emt 0:00:54]} 1-0

[Event "57th Biel Festival ATO 2024"]
[Site "Biel"]
[Date "2024.07.19"]
[Round "4.20"]
[White "Szelag, Zuzanna"]
[Black "Rossi, Jonas"]
[Result "1/2-1/2"]
[ECO "C12"]
[WhiteElo "1897"]
[BlackElo "1796"]
[Annotator "NA RC"]
[PlyCount "99"]
[EventDate "2024.07.03"]
[EventType "swiss"]
[EventCountry "SUI"]
[SourceTitle "playchess.com"]
[Source "ChessBase"]
[SourceQuality "1"]
[TimeControl "40/5400+30:1800+30"]

1. e4 {[%emt 0:00:04]} e6 {[%emt 0:00:07]} 2. d4 {[%emt 0:00:02]} d5 {[%emt 0:00:07]} 3. Nc3 {[%emt 0:00:03]} Nf6 {[%emt 0:00:10]} 4. Bg5 {[%emt 0:00:06]} Bb4 {[%emt 0:00:21]} 5. e5 {[%emt 0:00:10]} h6 {[%emt 0:00:08]} 6. Bd2 {[%emt 0:00:02]} Bxc3 {[%emt 0:00:10]} 7. bxc3 {[%emt 0:00:26]} Ne4 {[%emt 0:00:20]} 8. Qg4 {[%emt 0:00:17]} g6 {[%emt 0:00:46]} 9. Bd3 {[%emt 0:00:05]} Nxd2 {[%emt 0:01:49]} 10. Kxd2 {[%emt 0:00:06]} c5 {[%emt 0:00:07]} 11. Nf3 {[%emt 0:01:28]} Nc6 {[%emt 0:12:07]} 12. h4 {[%emt 0:02:08]} c4 {[%emt 0:02:40]} 13. Be2 {[%emt 0:01:18]} Bd7 {[%emt 0:00:28]} 14. Qf4 {[%emt 0:05:36]} Qe7 {[%emt 0:02:09]} 15. Nh2 {[%emt 0:06:37]} h5 {[%emt 0:03:35]} 16. g4 {[%emt 0:06:09]} O-O-O {[%emt 0:07:02]} 17. gxh5 {[%emt 0:03:15]} gxh5 {[%emt 0:10:57]} 18. Rhg1 {[%emt 0:02:35]} Rh7 {[%emt 0:07:47]} 19. Rg5 {[%emt 0:06:22]} Rdh8 {[%emt 0:12:16]} 20. a3 {[%emt 0:17:05]} b5 {[%emt 0:03:10]} 21. Nf1 {[%emt 0:03:15]} a5 {[%emt 0:02:30]} 22. Ng3 {[%emt 0:01:22]} b4 {[%emt 0:03:59]} 23. axb4 {[%emt 0:00:40]} axb4 {[%emt 0:00:09]} 24. Rxh5 {[%emt 0:04:41]} bxc3+ {[%emt 0:03:50]} 25. Ke1 {[%emt 0:01:50]} Kb7 {[%emt 0:05:59]} 26. Rxh7 {[%emt 0:04:57]} Rxh7 {[%emt 0:00:07]} 27. h5 {[%emt 0:00:42]} Qb4 {[%emt 0:03:35]} 28. h6 {[%emt 0:16:06]} Qb2 {[%emt 0:01:30]} 29. Rc1 {[%emt 0:00:11]} Nxd4 {[%emt 0:01:35]} 30. Nh5 {[%emt 0:02:12]} Rh8 {[%emt 0:13:35]} 31. Bd1 {[%emt 0:04:22]} Nf5 {[%emt 0:00:37]} 32. Nf6 {[%emt 0:01:14]} Ba4 {[%emt 0:01:40]} 33. h7 {[%emt 0:00:47]} Ka6 {[%emt 0:00:33]} 34. Nxd5 {[%emt 0:03:51]} exd5 {[%emt 0:00:18]} 35. Qxf5 {[%emt 0:00:05]} Qxc1 {[%emt 0:00:27]} 36. Qf6+ {[%emt 0:00:06]} Kb5 {[%emt 0:00:43]} 37. Qxh8 {[%emt 0:00:49]} Bxc2 {[%emt 0:00:25]} 38. Qb8+ {[%emt 0:00:55]} Ka4 {[%emt 0:00:54]} 39. Qa8+ {[%emt 0:01:11]} Kb4 {[%emt 0:00:42]} 40. Qxd5 {[%emt 0:00:47]} Qd2+ {[%emt 0:00:32]} 41. Qxd2 {[%emt 0:30:06]} cxd2+ {[%emt 0:30:14]} 42. Kxd2 {[%emt 0:00:18]} Bxh7 {[%emt 0:00:38]} 43. Bh5 {[%emt 0:00:58]} c3+ {[%emt 0:00:00]} 44. Kc1 {[%emt 0:00:00]} Bg8 {[%emt 0:00:00]} 45. f4 {[%emt 0:00:00]} Kc4 {[%emt 0:00:00]} 46. Kd1 {[%emt 0:00:00]} Kd4 {[%emt 0:00:00]} 47. Kc1 {[%emt 0:00:00]} Ke4 {[%emt 0:00:00]} 48. Kc2 {[%emt 0:00:00]} Kxf4 {[%emt 0:00:00]} 49. Kxc3 {[%emt 0:00:00]} Kxe5 {[%emt 0:00:00]} 50. Bxf7 {[%emt 0:00:00]} 1/2-1/2

[Event "57th Biel Festival ATO 2024"]
[Site "Biel"]
[Date "2024.07.19"]
[Round "4.21"]
[White "Wenger, Arejou"]
[Black "Kim, Yejun"]
[Result "1/2-1/2"]
[ECO "B31"]
[WhiteElo "1875"]
[BlackElo "1642"]
[Annotator "NA RC"]
[PlyCount "65"]
[EventDate "2024.07.03"]
[EventType "swiss"]
[EventCountry "SUI"]
[SourceTitle "playchess.com"]
[Source "ChessBase"]
[SourceQuality "1"]
[TimeControl "40/5400+30:1800+30"]

1. e4 {[%emt 0:00:04]} c5 {[%emt 0:00:04]} 2. Nf3 {[%emt 0:00:04]} Nc6 {[%emt 0:00:05]} 3. Bb5 {[%emt 0:00:07]} g6 {[%emt 0:00:07]} 4. O-O {[%emt 0:00:07]} Bg7 {[%emt 0:00:04]} 5. Re1 {[%emt 0:01:01]} e5 {[%emt 0:00:09]} 6. c3 {[%emt 0:01:58]} a6 {[%emt 0:01:06]} 7. Bf1 {[%emt 0:03:55]} Nge7 {[%emt 0:00:27]} 8. d3 {[%emt 0:02:10]} h6 {[%emt 0:00:18]} 9. Be3 {[%emt 0:01:34]} d6 {[%emt 0:00:07]} 10. h3 {[%emt 0:04:34]} O-O {[%emt 0:00:08]} 11. Qd2 {[%emt 0:02:17]} Kh7 {[%emt 0:00:55]} 12. d4 {[%emt 0:02:26]} cxd4 {[%emt 0:01:10]} 13. cxd4 {[%emt 0:00:21]} f5 {[%emt 0:00:09]} 14. dxe5 {[%emt 0:12:01]} fxe4 {[%emt 0:02:24]} 15. exd6 {[%emt 0:03:16]} Nf5 {[%emt 0:00:27]} 16. Nh2 {[%emt 0:02:51]} Nxe3 {[%emt 0:02:05]} 17. fxe3 {[%emt 0:09:10]} Be5 {[%emt 0:00:19]} 18. Nc3 {[%emt 0:03:15]} Bxd6 {[%emt 0:04:17]} 19. Nxe4 {[%emt 0:03:30]} Bxh2+ {[%emt 0:02:17]} 20. Kxh2 {[%emt 0:00:08]} Qh4 {[%emt 0:00:05]} 21. Qd6 {[%emt 0:04:37]} Bxh3 {[%emt 0:02:26]} 22. gxh3 {[%emt 0:06:23]} Qxe4 {[%emt 0:00:14]} 23. Qc7+ {[%emt 0:04:56]} Kh8 {[%emt 0:01:48]} 24. Qg3 {[%emt 0:01:55]} Ne5 {[%emt 0:02:41]} 25. Bg2 {[%emt 0:01:47]} Nf3+ {[%emt 0:06:54]} 26. Kh1 {[%emt 0:03:11]} Qh4 {[%emt 0:00:21]} 27. Qxh4 {[%emt 0:00:30]} Nxh4 {[%emt 0:00:05]} 28. Bxb7 {[%emt 0:13:00]} Rab8 {[%emt 0:00:16]} 29. Bxa6 {[%emt 0:00:21]} Rxb2 {[%emt 0:00:20]} 30. Re2 {[%emt 0:00:39]} Rf2 {[%emt 0:02:10]} 31. Rxf2 {[%emt 0:01:02]} Rxf2 {[%emt 0:00:05]} 32. Rf1 {[%emt 0:00:23]} Rxa2 {[%emt 0:00:18]} 33. Bc4 {[%emt 0:03:18]} 1/2-1/2

[Event "57th Biel Festival ATO 2024"]
[Site "Biel"]
[Date "2024.07.19"]
[Round "4.22"]
[White "Buntschu, Kurt"]
[Black "Moon, Sunwoong"]
[Result "0-1"]
[ECO "C08"]
[WhiteElo "1868"]
[BlackElo "1661"]
[Annotator "NA"]
[PlyCount "132"]
[EventDate "2024.07.03"]
[EventType "swiss"]
[EventCountry "SUI"]
[SourceTitle "playchess.com"]
[Source "ChessBase"]
[SourceQuality "1"]
[TimeControl "40/5400+30:1800+30"]

1. e4 {[%emt 0:00:15]} e6 {[%emt 0:00:06]} 2. d4 {[%emt 0:00:09]} d5 {[%emt 0:00:17]} 3. Nd2 {[%emt 0:00:09]} c5 {[%emt 0:01:18]} 4. exd5 {[%emt 0:00:16]} exd5 {[%emt 0:00:09]} 5. Bb5+ {[%emt 0:00:11]} Bd7 {[%emt 0:00:24]} 6. Qe2+ {[%emt 0:01:55]} Qe7 {[%emt 0:00:32]} 7. Bxd7+ {[%emt 0:01:51]} Nxd7 {[%emt 0:00:14]} 8. dxc5 {[%emt 0:02:57]} Qxe2+ {[%emt 0:05:20]} 9. Nxe2 {[%emt 0:00:18]} Bxc5 {[%emt 0:00:07]} 10. Nb3 {[%emt 0:01:55]} Bb6 {[%emt 0:00:46]} 11. Bf4 {[%emt 0:04:13]} Ngf6 {[%emt 0:01:32]} 12. O-O {[%emt 0:05:22]} O-O {[%emt 0:01:04]} 13. Rad1 {[%emt 0:04:20]} Rfe8 {[%emt 0:01:43]} 14. Ned4 {[%emt 0:05:07]} Nc5 {[%emt 0:04:23]} 15. Nxc5 {[%emt 0:08:26]} Bxc5 {[%emt 0:00:14]} 16. Nb3 {[%emt 0:00:05]} Bb6 {[%emt 0:00:32]} 17. Rfe1 {[%emt 0:14:00]} Re6 {[%emt 0:08:21]} 18. Kf1 {[%emt 0:08:33]} Rae8 {[%emt 0:01:26]} 19. a4 {[%emt 0:07:00]} a5 {[%emt 0:01:11]} 20. Bd2 {[%emt 0:02:27]} Ng4 {[%emt 0:11:28]} 21. h3 {[%emt 0:03:17]} Nxf2 {[%emt 0:01:47]} 22. Rxe6 {[%emt 0:02:09]} Rxe6 {[%emt 0:00:35]} 23. Re1 {[%emt 0:04:52]} Ne4 {[%emt 0:00:39]} 24. Be3 {[%emt 0:04:51]} Bxe3 {[%emt 0:00:52]} 25. Rxe3 {[%emt 0:00:15]} b6 {[%emt 0:00:10]} 26. Rd3 {[%emt 0:02:39]} Rd6 {[%emt 0:02:12]} 27. Nd4 {[%emt 0:03:27]} Nc5 {[%emt 0:03:21]} 28. Re3 {[%emt 0:01:29]} g6 {[%emt 0:01:04]} 29. b3 {[%emt 0:00:30]} Ne6 {[%emt 0:01:27]} 30. Nxe6 {[%emt 0:03:44]} fxe6 {[%emt 0:00:38]} 31. Ke2 {[%emt 0:00:48]} Kf7 {[%emt 0:00:31]} 32. Kd3 {[%emt 0:00:28]} Kf6 {[%emt 0:01:16]} 33. Rf3+ {[%emt 0:00:17]} Ke7 {[%emt 0:05:23]} 34. Kd4 {[%emt 0:01:02]} Rc6 {[%emt 0:00:26]} 35. c3 {[%emt 0:02:19]} Kd6 {[%emt 0:00:10]} 36. Rf6 {[%emt 0:02:40]} Rc7 {[%emt 0:02:28]} 37. Rf8 {[%emt 0:01:52]} e5+ {[%emt 0:00:50]} 38. Kd3 {[%emt 0:00:09]} e4+ {[%emt 0:00:24]} 39. Kd4 {[%emt 0:00:14]} Re7 {[%emt 0:00:21]} 40. Ke3 {[%emt 0:02:38]} Ke5 {[%emt 0:01:08]} 41. Rc8 {[%emt 0:01:21]} h5 {[%emt 0:01:14]} 42. Rc6 {[%emt 0:06:33]} Re6 {[%emt 0:00:09]} 43. Rc8 {[%emt 0:00:08]} Kf5 {[%emt 0:00:56]} 44. Rd8 {[%emt 0:01:17]} Re5 {[%emt 0:01:28]} 45. Rd6 {[%emt 0:04:00]} g5 {[%emt 0:00:25]} 46. Rxb6 {[%emt 0:00:45]} g4 {[%emt 0:00:32]} 47. hxg4+ {[%emt 0:05:31]} hxg4 {[%emt 0:00:33]} 48. g3 {[%emt 0:00:34]} Kg5 {[%emt 0:02:30]} 49. Rb5 {[%emt 0:07:01]} Kf5 {[%emt 0:01:41]} 50. Rxa5 {[%emt 0:00:09]} d4+ {[%emt 0:00:15]} 51. Kxd4 {[%emt 0:01:10]} Rxa5 {[%emt 0:00:26]} 52. c4 {[%emt 0:00:11]} Re5 {[%emt 0:00:23]} 53. Ke3 {[%emt 0:00:10]} Ke6 {[%emt 0:00:21]} 54. b4 {[%emt 0:00:18]} Kd6 {[%emt 0:00:48]} 55. a5 {[%emt 0:00:09]} Kc6 {[%emt 0:00:57]} 56. a6 {[%emt 0:01:57]} Kb6 {[%emt 0:00:18]} 57. b5 {[%emt 0:00:04]} Rc5 {[%emt 0:00:16]} 58. Kxe4 {[%emt 0:00:30]} Rxc4+ {[%emt 0:00:28]} 59. Kf5 {[%emt 0:00:11]} Ra4 {[%emt 0:02:35]} 60. Kg5 {[%emt 0:00:20]} Kxb5 {[%emt 0:00:46]} 61. a7 {[%emt 0:00:14]} Rxa7 {[%emt 0:00:04]} 62. Kxg4 {[%emt 0:00:07]} Rg7+ {[%emt 0:02:38]} 63. Kf4 {[%emt 0:00:09]} Kc6 {[%emt 0:00:19]} 64. g4 {[%emt 0:00:06]} Kd7 {[%emt 0:00:38]} 65. Kf5 {[%emt 0:00:09]} Ke7 {[%emt 0:00:06]} 66. g5 {[%emt 0:00:49]} Kf7 {[%emt 0:00:14]} 0-1

[Event "57th Biel Festival ATO 2024"]
[Site "Biel"]
[Date "2024.07.19"]
[Round "4.23"]
[White "Akhmediyar, Yernur"]
[Black "Gafner, Lancelot"]
[Result "1-0"]
[ECO "A28"]
[WhiteElo "1751"]
[BlackElo "1864"]
[Annotator "NA RC"]
[PlyCount "81"]
[EventDate "2024.07.03"]
[EventType "swiss"]
[EventCountry "SUI"]
[SourceTitle "playchess.com"]
[Source "ChessBase"]
[SourceQuality "1"]
[TimeControl "40/5400+30:1800+30"]

1. c4 {[%emt 0:00:44]} e5 {[%emt 0:00:22]} 2. Nc3 {[%emt 0:00:16]} Nf6 {[%emt 0:00:25]} 3. Nf3 {[%emt 0:00:38]} Nc6 {[%emt 0:00:22]} 4. e4 {[%emt 0:02:46]} Bb4 {[%emt 0:00:25]} 5. d3 {[%emt 0:01:01]} d6 {[%emt 0:03:24]} 6. Be2 {[%emt 0:04:46]} h6 {[%emt 0:02:09]} 7. O-O {[%emt 0:02:29]} O-O {[%emt 0:00:23]} 8. a3 {[%emt 0:03:19]} Ba5 {[%emt 0:00:13]} 9. b4 {[%emt 0:05:30]} Bb6 {[%emt 0:00:50]} 10. Na4 {[%emt 0:01:27]} Bd4 {[%emt 0:00:43]} 11. Rb1 {[%emt 0:02:17]} Bb6 {[%emt 0:07:31]} 12. Bb2 {[%emt 0:13:59]} Bg4 {[%emt 0:09:59]} 13. h3 {[%emt 0:11:10]} Bxf3 {[%emt 0:03:17]} 14. Bxf3 {[%emt 0:00:12]} Bd4 {[%emt 0:01:49]} 15. b5 {[%emt 0:02:13]} Ne7 {[%emt 0:01:27]} 16. Bxd4 {[%emt 0:06:48]} exd4 {[%emt 0:00:06]} 17. Qe2 {[%emt 0:07:04]} c6 {[%emt 0:03:03]} 18. bxc6 {[%emt 0:07:18]} bxc6 {[%emt 0:04:04]} 19. e5 {[%emt 0:03:27]} dxe5 {[%emt 0:03:21]} 20. Qxe5 {[%emt 0:00:11]} Re8 {[%emt 0:03:18]} 21. Qc5 {[%emt 0:03:07]} Qd7 {[%emt 0:00:53]} 22. Rfe1 {[%emt 0:02:28]} Rac8 {[%emt 0:02:56]} 23. Qa5 {[%emt 0:03:53]} c5 {[%emt 0:08:59]} 24. Nxc5 {[%emt 0:06:10]} Qf5 {[%emt 0:02:11]} 25. Nb7 {[%emt 0:02:13]} Qxd3 {[%emt 0:05:01]} 26. Rbd1 {[%emt 0:03:57]} Qf5 {[%emt 0:10:11]} 27. Rxe7 {[%emt 0:00:48]} Qxa5 {[%emt 0:02:43]} 28. Rxe8+ {[%emt 0:00:08]} Nxe8 {[%emt 0:00:09]} 29. Nxa5 {[%emt 0:00:07]} Rc5 {[%emt 0:00:03]} 30. Nc6 {[%emt 0:00:22]} Rxc4 {[%emt 0:00:11]} 31. Rxd4 {[%emt 0:00:07]} Rc1+ {[%emt 0:00:18]} 32. Kh2 {[%emt 0:00:10]} Nc7 {[%emt 0:00:30]} 33. Nxa7 {[%emt 0:00:23]} Rc3 {[%emt 0:00:32]} 34. a4 {[%emt 0:00:21]} Ne6 {[%emt 0:00:05]} 35. Rb4 {[%emt 0:00:29]} Rc5 {[%emt 0:00:30]} 36. Rb5 {[%emt 0:00:28]} Rc4 {[%emt 0:00:34]} 37. a5 {[%emt 0:00:37]} Nd4 {[%emt 0:00:26]} 38. Rb8+ {[%emt 0:00:15]} Kh7 {[%emt 0:00:05]} 39. Be4+ {[%emt 0:00:28]} g6 {[%emt 0:00:25]} 40. Rb7 {[%emt 0:00:33]} Kg8 {[%emt 0:00:21]} 41. Rxf7 {[%emt 0:30:46]} 1-0

[Event "57th Biel Festival ATO 2024"]
[Site "Biel"]
[Date "2024.07.19"]
[Round "4.24"]
[White "Hansen, Michael Bo"]
[Black "Nergard, Ole-Kristian"]
[Result "0-1"]
[ECO "E91"]
[WhiteElo "1759"]
[BlackElo "1830"]
[Annotator "NA RC"]
[PlyCount "104"]
[EventDate "2024.07.03"]
[EventType "swiss"]
[EventCountry "SUI"]
[SourceTitle "playchess.com"]
[Source "ChessBase"]
[SourceQuality "1"]
[TimeControl "40/5400+30:1800+30"]

1. d4 {[%emt 0:00:03]} Nf6 {[%emt 0:06:56]} 2. c4 {[%emt 0:00:13]} g6 {[%emt 0:00:22]} 3. Nc3 {[%emt 0:00:11]} Bg7 {[%emt 0:00:08]} 4. e4 {[%emt 0:00:22]} d6 {[%emt 0:00:05]} 5. Nf3 {[%emt 0:00:17]} O-O {[%emt 0:00:56]} 6. Be2 {[%emt 0:00:09]} Bg4 {[%emt 0:01:49]} 7. O-O {[%emt 0:04:53]} Nfd7 {[%emt 0:01:05]} 8. Be3 {[%emt 0:03:10]} Nc6 {[%emt 0:05:09]} 9. Qd2 {[%emt 0:02:57]} Bxf3 {[%emt 0:00:58]} 10. Bxf3 {[%emt 0:00:27]} e5 {[%emt 0:00:08]} 11. Ne2 {[%emt 0:02:28]} exd4 {[%emt 0:00:50]} 12. Nxd4 {[%emt 0:01:35]} Nxd4 {[%emt 0:03:55]} 13. Bxd4 {[%emt 0:00:04]} Bxd4 {[%emt 0:00:22]} 14. Qxd4 {[%emt 0:00:03]} Qf6 {[%emt 0:00:21]} 15. Qxf6 {[%emt 0:12:00]} Nxf6 {[%emt 0:00:01]} 16. Rfe1 {[%emt 0:00:41]} Nd7 {[%emt 0:02:06]} 17. Re3 {[%emt 0:05:06]} a5 {[%emt 0:01:37]} 18. Rb1 {[%emt 0:06:23]} Nc5 {[%emt 0:01:27]} 19. b3 {[%emt 0:01:44]} Rfe8 {[%emt 0:02:34]} 20. a3 {[%emt 0:02:54]} a4 {[%emt 0:00:48]} 21. b4 {[%emt 0:00:36]} Nb3 {[%emt 0:01:07]} 22. Rd1 {[%emt 0:02:25]} c5 {[%emt 0:06:34]} 23. bxc5 {[%emt 0:05:16]} dxc5 {[%emt 0:00:52]} 24. Rd5 {[%emt 0:00:48]} Rad8 {[%emt 0:02:59]} 25. Red3 {[%emt 0:03:10]} Nd4 {[%emt 0:01:10]} 26. Kf1 {[%emt 0:02:03]} Rxd5 {[%emt 0:03:59]} 27. exd5 {[%emt 0:00:52]} b5 {[%emt 0:03:45]} 28. Bd1 {[%emt 0:04:13]} bxc4 {[%emt 0:01:09]} 29. Rc3 {[%emt 0:00:44]} Nb3 {[%emt 0:01:11]} 30. Be2 {[%emt 0:03:55]} Re4 {[%emt 0:02:55]} 31. f3 {[%emt 0:00:24]} Rd4 {[%emt 0:00:53]} 32. Kf2 {[%emt 0:00:48]} Na5 {[%emt 0:06:19]} 33. Ke1 {[%emt 0:02:15]} Kf8 {[%emt 0:02:20]} 34. Bd1 {[%emt 0:01:34]} Rxd5 {[%emt 0:18:00]} 35. Bxa4 {[%emt 0:00:49]} Rd3 {[%emt 0:12:49]} 36. Rc2 {[%emt 0:00:44]} Rxa3 {[%emt 0:00:36]} 37. Bb5 {[%emt 0:00:12]} c3 {[%emt 0:01:19]} 38. Ke2 {[%emt 0:00:32]} Nb3 {[%emt 0:02:22]} 39. Rxc3 {[%emt 0:03:13]} Nd4+ {[%emt 0:00:15]} 40. Kd3 {[%emt 0:00:07]} Rxc3+ {[%emt 0:04:36]} 41. Kxc3 {[%emt 0:30:09]} Nxb5+ {[%emt 0:30:27]} 42. Kc4 {[%emt 0:00:06]} Nd6+ {[%emt 0:00:36]} 43. Kxc5 {[%emt 0:00:08]} Ke7 {[%emt 0:00:24]} 44. Kd5 {[%emt 0:00:53]} Ne8 {[%emt 0:03:27]} 45. Ke5 {[%emt 0:01:12]} f6+ {[%emt 0:00:24]} 46. Kf4 {[%emt 0:00:10]} Ke6 {[%emt 0:00:23]} 47. h4 {[%emt 0:00:34]} Ng7 {[%emt 0:00:33]} 48. g4 {[%emt 0:00:24]} Kd5 {[%emt 0:00:47]} 49. Ke3 {[%emt 0:03:42]} f5 {[%emt 0:00:00]} 50. Kf2 {[%emt 0:00:00]} f4 {[%emt 0:00:00]} 51. Kg2 {[%emt 0:00:00]} Kd4 {[%emt 0:00:00]} 52. Kf2 {[%emt 0:00:00]} Kd3 {[%emt 0:00:00]} 0-1

[Event "57th Biel Festival ATO 2024"]
[Site "Biel"]
[Date "2024.07.19"]
[Round "4.27"]
[White "Sushrutha, Reddy"]
[Black "Spaeti, Kurt"]
[Result "1-0"]
[ECO "B78"]
[WhiteElo "1649"]
[BlackElo "1804"]
[Annotator "NA RC"]
[PlyCount "37"]
[EventDate "2024.07.03"]
[EventType "swiss"]
[EventCountry "SUI"]
[SourceTitle "playchess.com"]
[Source "ChessBase"]
[SourceQuality "1"]
[TimeControl "40/5400+30:1800+30"]

1. e4 {[%emt 0:00:58]} c5 {[%emt 0:00:07]} 2. Nf3 {[%emt 0:00:06]} g6 {[%emt 0:00:07]} 3. d4 {[%emt 0:00:06]} cxd4 {[%emt 0:00:06]} 4. Nxd4 {[%emt 0:00:13]} Bg7 {[%emt 0:00:09]} 5. Nc3 {[%emt 0:00:20]} Nc6 {[%emt 0:00:03]} 6. Be3 {[%emt 0:00:15]} Nf6 {[%emt 0:00:10]} 7. Bc4 {[%emt 0:00:25]} O-O {[%emt 0:00:27]} 8. Bb3 {[%emt 0:00:17]} d6 {[%emt 0:00:45]} 9. f3 {[%emt 0:00:03]} Bd7 {[%emt 0:00:46]} 10. Qd2 {[%emt 0:00:04]} a6 {[%emt 0:01:20]} 11. O-O-O {[%emt 0:00:05]} Rc8 {[%emt 0:03:22]} 12. h4 {[%emt 0:00:03]} Ne5 {[%emt 0:03:28]} 13. h5 {[%emt 0:00:19]} Nxh5 {[%emt 0:04:38]} 14. g4 {[%emt 0:00:02]} Bxg4 {[%emt 0:18:38]} 15. fxg4 {[%emt 0:00:17]} Nxg4 {[%emt 0:00:22]} 16. Rdg1 {[%emt 0:01:52]} Nxe3 {[%emt 0:08:54]} 17. Qxe3 {[%emt 0:01:09]} Nf6 {[%emt 0:08:14]} 18. Nf5 {[%emt 0:01:18]} h5 {[%emt 0:01:37]} 19. Rxg6 {[%emt 0:00:07]} 1-0

[Event "57th Biel Festival ATO 2024"]
[Site "Biel"]
[Date "2024.07.19"]
[Round "4.28"]
[White "Cho, Yeonhee"]
[Black "Keymer, Cecilia"]
[Result "0-1"]
[ECO "C56"]
[WhiteElo "1686"]
[BlackElo "1865"]
[Annotator "NA RC"]
[PlyCount "92"]
[EventDate "2024.07.03"]
[EventType "swiss"]
[EventCountry "SUI"]
[SourceTitle "playchess.com"]
[Source "ChessBase"]
[SourceQuality "1"]
[TimeControl "40/5400+30:1800+30"]

1. e4 {[%emt 0:00:05]} e5 {[%emt 0:00:04]} 2. Nf3 {[%emt 0:00:06]} Nc6 {[%emt 0:00:05]} 3. d4 {[%emt 0:01:53]} exd4 {[%emt 0:00:18]} 4. Bc4 {[%emt 0:00:11]} Nf6 {[%emt 0:00:32]} 5. e5 {[%emt 0:00:09]} d5 {[%emt 0:00:41]} 6. Bb5 {[%emt 0:00:12]} Ne4 {[%emt 0:00:38]} 7. Nxd4 {[%emt 0:00:39]} Bd7 {[%emt 0:00:16]} 8. Bxc6 {[%emt 0:02:00]} bxc6 {[%emt 0:00:07]} 9. O-O {[%emt 0:01:21]} Be7 {[%emt 0:00:42]} 10. f3 {[%emt 0:06:27]} Nc5 {[%emt 0:00:28]} 11. Be3 {[%emt 0:01:35]} O-O {[%emt 0:03:55]} 12. b4 {[%emt 0:23:33]} Ne6 {[%emt 0:05:53]} 13. Qe1 {[%emt 0:05:55]} f6 {[%emt 0:04:26]} 14. Nxe6 {[%emt 0:05:26]} Bxe6 {[%emt 0:00:13]} 15. Bd4 {[%emt 0:00:53]} Qd7 {[%emt 0:04:19]} 16. a3 {[%emt 0:03:50]} fxe5 {[%emt 0:03:12]} 17. Qxe5 {[%emt 0:00:47]} Bf6 {[%emt 0:00:52]} 18. Qe3 {[%emt 0:00:13]} a5 {[%emt 0:08:30]} 19. Nc3 {[%emt 0:05:59]} Bxd4 {[%emt 0:05:02]} 20. Qxd4 {[%emt 0:01:29]} Qd6 {[%emt 0:01:54]} 21. Ne2 {[%emt 0:10:15]} Bf5 {[%emt 0:10:43]} 22. Qc3 {[%emt 0:03:21]} Rfb8 {[%emt 0:05:37]} 23. Nd4 {[%emt 0:05:16]} Bd7 {[%emt 0:00:35]} 24. Nb3 {[%emt 0:18:17]} axb4 {[%emt 0:03:58]} 25. axb4 {[%emt 0:00:03]} Rxa1 {[%emt 0:02:21]} 26. Rxa1 {[%emt 0:00:05]} Rxb4 {[%emt 0:02:12]} 27. Qe3 {[%emt 0:02:11]} Rb8 {[%emt 0:05:46]} 28. Rd1 {[%emt 0:00:39]} Re8 {[%emt 0:03:42]} 29. Qd3 {[%emt 0:00:10]} Qe5 {[%emt 0:02:38]} 30. Nc5 {[%emt 0:01:21]} Bf5 {[%emt 0:02:03]} 31. Qd2 {[%emt 0:00:03]} Qe3+ {[%emt 0:06:43]} 32. Qxe3 {[%emt 0:00:06]} Rxe3 {[%emt 0:00:07]} 33. Rd2 {[%emt 0:00:57]} Rc3 {[%emt 0:02:14]} 34. Nd3 {[%emt 0:00:31]} Bxd3 {[%emt 0:02:05]} 35. cxd3 {[%emt 0:00:16]} c5 {[%emt 0:02:47]} 36. Kf2 {[%emt 0:00:12]} Kf7 {[%emt 0:02:57]} 37. Kg3 {[%emt 0:00:58]} d4 {[%emt 0:02:50]} 38. Kf4 {[%emt 0:00:43]} c4 {[%emt 0:02:25]} 39. Ke4 {[%emt 0:01:14]} Rxd3 {[%emt 0:02:42]} 40. Rc2 {[%emt 0:00:27]} Rc3 {[%emt 0:01:53]} 41. Rxc3 {[%emt 0:01:22]} dxc3 {[%emt 0:02:15]} 42. Ke3 {[%emt 0:00:05]} Ke6 {[%emt 0:02:37]} 43. h4 {[%emt 0:04:24]} h5 {[%emt 0:03:13]} 44. g3 {[%emt 0:02:35]} Ke5 {[%emt 0:01:54]} 45. g4 {[%emt 0:05:55]} hxg4 {[%emt 0:04:15]} 46. fxg4 {[%emt 0:00:46]} c2 {[%emt 0:00:43]} 0-1